bitfinex/quotes_BTCUSD_20220218
["timestamp","ask_amount","ask_price","bid_price","bid_amount"]
[1645149397571,0.25897193,40844.0,40841.0,0.0002342]
[1645149397572,0.64501686,40843.0,40841.0,0.0002342]
[1645149397766,0.64501686,40843.0,40841.0,0.00053958]
[1645149397767,0.31330786,40842.0,40841.0,0.00053958]
[1645149397967,0.64501686,40842.0,40841.0,0.0002342]
[1645149398366,0.64501686,40842.0,40834.0,0.00030538]
[1645149398367,1.13623063,40842.0,40834.0,0.00030538]
[1645149398567,1.13623063,40842.0,40833.0,0.12248824]
[1645149398568,0.06125,40839.0,40833.0,0.12279362]
[1645149398767,0.80452163,40842.0,40834.0,0.00030538]
[1645149398768,0.64501686,40838.0,40834.0,0.00030538]
[1645149398967,0.331709,40838.0,40833.0,0.12248824]
[1645149399270,0.331709,40838.0,40833.0,0.12279362]
[1645149399669,0.331709,40836.0,40833.0,0.12279362]
[1645149399868,0.331709,40836.0,40833.0,0.12272228]
[1645149400268,0.1605825,40831.0,40830.0,0.12249896]
[1645149400469,0.1605825,40831.0,40830.0,0.21249896]
[1645149401115,0.1605825,40831.0,40830.0,0.17249896]
[1645149401918,0.1605825,40831.0,40830.0,0.17449896]
[1645149403715,0.1605825,40831.0,40830.0,0.22249896]
[1645149404769,0.1605825,40831.0,40830.0,0.16124935]
[1645149405970,0.1605825,40831.0,40830.0,0.16324935]
[1645149407270,0.1605825,40831.0,40830.0,0.16124935]
[1645149407870,0.1605825,40831.0,40830.0,0.16224935]
[1645149409823,0.1605825,40831.0,40830.0,0.16124935]
[1645149410024,0.1605825,40831.0,40830.0,0.16324935]
[1645149410924,0.1605825,40831.0,40830.0,0.11324935]
[1645149411125,0.1605825,40831.0,40830.0,0.16324935]
[1645149411327,0.1605825,40831.0,40830.0,0.16124935]
[1645149411726,0.1605825,40831.0,40830.0,0.11124935]
[1645149412766,0.1605825,40831.0,40830.0,0.06124935]
[1645149413568,0.16064416,40831.0,40830.0,0.06124935]
[1645149413969,0.16064416,40831.0,40830.0,0.06324935]
[1645149415769,0.16064416,40831.0,40830.0,0.06355332]
[1645149416025,0.16064416,40831.0,40830.0,0.06555332]
[1645149417426,0.16064416,40831.0,40830.0,0.06155332]
[1645149422074,0.16064416,40831.0,40830.0,0.06355332]
[1645149423275,0.16064416,40831.0,40830.0,0.06155332]
[1645149423926,0.16064416,40831.0,40830.0,0.06355332]
[1645149424125,0.16064416,40831.0,40830.0,0.00230397]
[1645149425228,0.16064416,40831.0,40830.0,0.00030397]
[1645149425429,0.16064416,40831.0,40830.0,0.331709]
[1645149425627,0.16064416,40831.0,40830.0,0.00030397]
[1645149425828,0.16064416,40831.0,40830.0,0.331709]
[1645149426128,0.16064416,40831.0,40830.0,0.38401297]
[1645149426427,0.16064416,40831.0,40830.0,0.00230397]
[1645149427267,0.16064416,40831.0,40830.0,0.00030397]
[1645149427467,0.16064416,40831.0,40829.0,0.07133997]
[1645149427774,0.16064416,40831.0,40829.0,0.12133997]
[1645149428066,0.16064416,40831.0,40830.0,0.002]
[1645149428267,0.16064416,40831.0,40830.0,0.00230397]
[1645149429869,0.16064416,40831.0,40830.0,0.00030397]
[1645149430070,0.16064416,40831.0,40830.0,0.002]
[1645149430274,0.3,40830.0,40829.0,0.22069589]
[1645149430472,0.16064416,40831.0,40829.0,0.22069589]
[1645149431532,0.16064416,40831.0,40829.0,0.061241]
[1645149432235,0.16064416,40831.0,40829.0,0.111241]
[1645149434035,0.16064416,40831.0,40829.0,0.113241]
[1645149435274,0.16064416,40831.0,40829.0,0.111241]
[1645149435872,0.16064416,40831.0,40829.0,0.106241]
[1645149436074,0.16064416,40831.0,40829.0,0.108241]
[1645149436474,0.16064416,40831.0,40829.0,0.002]
[1645149436475,0.331709,40830.0,40829.0,0.002]
[1645149437275,0.59455515,40830.0,40829.0,0.002]
[1645149437776,0.331709,40829.0,40828.0,0.111253]
[1645149438080,0.26284615,40830.0,40829.0,0.001]
[1645149438277,0.59455515,40830.0,40829.0,0.001]
[1645149438523,0.57335707,40830.0,40829.0,0.001]
[1645149438721,0.96638416,40830.0,40829.0,0.001]
[1645149438921,0.63467516,40830.0,40829.0,0.001]
[1645149439123,0.69593216,40830.0,40829.0,0.001]
[1645149439625,0.63467565,40830.0,40829.0,0.001]
[1645149439823,0.63467565,40830.0,40828.0,0.059796]
[1645149440024,0.69593172,40830.0,40828.0,0.05]
[1645149440226,0.23141446,40829.0,40828.0,0.05]
[1645149440526,0.62438146,40829.0,40828.0,0.061254]
[1645149440730,0.392967,40829.0,40828.0,0.061254]
[1645149440928,0.061258,40829.0,40828.0,0.061254]
[1645149441328,0.70347792,40829.0,40828.0,0.061254]
[1645149441528,0.70347792,40829.0,40827.0,0.183759]
[1645149441928,0.70447792,40829.0,40827.0,0.183759]
[1645149442191,0.393967,40829.0,40827.0,0.183759]
[1645149442381,0.6025222,40829.0,40827.0,0.183759]
[1645149442581,0.393967,40829.0,40827.0,0.183759]
[1645149442782,0.332709,40829.0,40827.0,0.183759]
[1645149443385,0.33277878,40829.0,40827.0,0.183759]
[1645149443582,0.33277878,40829.0,40827.0,0.193555]
[1645149443984,0.33377878,40829.0,40827.0,0.193555]
[1645149444385,0.33377878,40829.0,40827.0,0.183759]
[1645149444585,0.331709,40828.0,40827.0,0.122499]
[1645149446842,0.06132578,40829.0,40827.0,0.12280196]
[1645149447243,0.06132578,40829.0,40827.0,0.132295]
[1645149447844,0.331709,40828.0,40827.0,0.132295]
[1645149448243,0.331709,40828.0,40827.0,0.13259796]
[1645149448447,0.3317787,40828.0,40827.0,0.13259796]
[1645149449247,0.3317787,40828.0,40827.0,0.132295]
[1645149449448,0.64228962,40828.0,40827.0,0.132295]
[1645149450277,0.3317787,40828.0,40827.0,0.132295]
[1645149450675,0.3817787,40828.0,40827.0,0.132295]
[1645149450875,0.3817787,40828.0,40827.0,0.009796]
[1645149451076,6.97e-05,40828.0,40827.0,0.009796]
[1645149452076,0.3317787,40828.0,40827.0,0.009796]
[1645149453281,0.3327787,40828.0,40827.0,0.009796]
[1645149454728,0.3827787,40828.0,40827.0,0.009796]
[1645149456027,0.5913339,40828.0,40827.0,0.009796]
[1645149456830,0.5863339,40828.0,40827.0,0.009796]
[1645149457278,0.5873339,40828.0,40827.0,0.009796]
[1645149457477,0.5863339,40828.0,40827.0,0.009796]
[1645149457877,0.5413339,40828.0,40827.0,0.009796]
[1645149458079,0.3327787,40828.0,40827.0,0.009796]
[1645149458283,0.4827787,40828.0,40827.0,0.009796]
[1645149459083,0.4817787,40828.0,40827.0,0.009796]
[1645149460380,0.331709,40825.0,40821.0,0.06584018]
[1645149460581,0.51550534,40825.0,40821.0,0.06584018]
[1645149460782,0.56550534,40825.0,40821.0,0.06584018]
[1645149461035,0.56550534,40825.0,40823.0,0.061266]
[1645149461935,0.392975,40824.0,40823.0,0.061266]
[1645149462938,0.331709,40824.0,40823.0,0.061266]
[1645149468280,0.33177978,40824.0,40823.0,0.061266]
[1645149469331,0.33177978,40824.0,40823.0,0.011266]
[1645149470130,0.33177978,40824.0,40823.0,0.03949624]
[1645149470829,0.33177978,40824.0,40823.0,0.011266]
[1645149471434,0.33177978,40824.0,40818.0,1.02823024]
[1645149471435,0.95,40823.0,40818.0,1.0]
[1645149471633,0.95,40823.0,40818.0,0.7]
[1645149471634,0.2087477,40819.0,40818.0,0.7]
[1645149471835,0.64164362,40819.0,40818.0,0.7]
[1645149472189,0.64164362,40819.0,40818.0,0.5]
[1645149472190,0.430709,40819.0,40818.0,0.5]
[1645149472382,1.989709,40818.0,40815.0,0.009801]
[1645149472581,0.515582,40816.0,40815.0,0.009801]
[1645149472782,0.515582,40816.0,40813.0,0.122587]
[1645149472981,0.331709,40814.0,40813.0,0.122587]
[1645149473382,0.54042665,40814.0,40813.0,0.122587]
[1645149473582,0.331709,40814.0,40813.0,0.122587]
[1645149475286,0.333709,40814.0,40813.0,0.122587]
[1645149475487,0.63627906,40814.0,40813.0,0.122587]
[1645149475786,0.63627906,40814.0,40813.0,0.12288854]
[1645149476224,0.63627906,40814.0,40813.0,0.13268854]
[1645149476628,0.63427906,40814.0,40813.0,0.13268854]
[1645149477231,0.73527906,40814.0,40813.0,0.13268854]
[1645149478432,0.73534912,40814.0,40813.0,0.13268854]
[1645149478632,0.73434912,40814.0,40813.0,0.13268854]
[1645149479332,0.63534912,40814.0,40813.0,0.13268854]
[1645149479535,0.73534912,40814.0,40813.0,0.13268854]
[1645149480376,0.73534912,40814.0,40806.0,0.183871]
[1645149480377,0.25981314,40810.0,40806.0,0.183871]
[1645149480575,0.061294,40808.0,40806.0,0.183871]
[1645149480877,0.331709,40807.0,40806.0,0.183871]
[1645149481676,0.67251321,40807.0,40806.0,0.183871]
[1645149482476,0.331709,40807.0,40806.0,0.183871]
[1645149482776,0.061294,40808.0,40806.0,0.51348872]
[1645149482977,0.25981314,40810.0,40807.0,0.02823024]
[1645149483178,0.25981314,40810.0,40808.0,0.061276]
[1645149483432,0.25981314,40810.0,40809.0,0.331709]
[1645149483634,7.006e-05,40814.0,40810.0,0.4]
[1645149483835,7.006e-05,40814.0,40813.0,0.02823024]
[1645149484036,7.006e-05,40814.0,40813.0,0.71252672]
[1645149484235,0.21346915,40826.0,40822.0,0.19470809]
[1645149484433,0.21346915,40826.0,40825.0,0.02823024]
[1645149484434,0.01703419,40826.0,40825.0,0.02823024]
[1645149485233,0.01703419,40826.0,40825.0,0.03023024]
[1645149485733,0.34874319,40826.0,40825.0,0.002]
[1645149486134,0.49874319,40826.0,40825.0,0.002]
[1645149486334,0.75965066,40826.0,40825.0,0.002]
[1645149486533,0.49874319,40826.0,40825.0,0.002]
[1645149487187,0.49874319,40826.0,40823.0,0.061256]
[1645149487479,0.331709,40824.0,40823.0,0.061256]
[1645149488778,0.381709,40825.0,40823.0,0.061256]
[1645149488979,0.05,40825.0,40823.0,0.061256]
[1645149489378,0.001,40824.0,40823.0,0.061256]
[1645149490080,0.332709,40824.0,40823.0,0.061256]
[1645149490281,0.8,40823.0,40814.0,0.45770665]
[1645149490479,0.001,40824.0,40814.0,0.05]
[1645149490679,0.001,40824.0,40819.0,0.061266]
[1645149490931,0.001,40824.0,40819.0,0.53225551]
[1645149491132,0.061265,40825.0,40819.0,0.53225551]
[1645149491332,0.061265,40825.0,40820.0,0.05]
[1645149491935,0.0171029,40826.0,40820.0,0.111264]
[1645149492137,0.0171029,40826.0,40820.0,0.172529]
[1645149492338,0.0171029,40826.0,40821.0,0.331709]
[1645149492540,0.0171029,40826.0,40824.0,0.05]
[1645149492736,0.0171029,40826.0,40825.0,0.331709]
[1645149493235,0.01703419,40826.0,40825.0,0.381709]
[1645149494236,0.01703419,40826.0,40825.0,0.15]
[1645149494682,0.01703419,40826.0,40825.0,0.05]
[1645149494878,0.331709,40825.0,40824.0,0.172493]
[1645149495084,0.331709,40825.0,40824.0,0.05]
[1645149495278,0.331709,40825.0,40823.0,0.172493]
[1645149495979,0.331709,40825.0,40823.0,0.122493]
[1645149495980,0.77785106,40825.0,40823.0,0.122493]
[1645149496178,0.98640492,40825.0,40823.0,0.122493]
[1645149496980,0.331709,40824.0,40823.0,0.122493]
[1645149498280,0.331709,40824.0,40823.0,0.112493]
[1645149500535,0.12331976,40822.0,40821.0,0.122515]
[1645149501738,0.12331976,40822.0,40821.0,0.172515]
[1645149502386,0.12331976,40822.0,40821.0,0.122515]
[1645149502585,0.45502876,40822.0,40821.0,0.122515]
[1645149502791,0.12331976,40822.0,40821.0,0.132312]
[1645149503186,0.45502876,40822.0,40821.0,0.132312]
[1645149503385,0.12331976,40822.0,40821.0,0.132312]
[1645149504788,0.12331976,40822.0,40821.0,0.182312]
[1645149506041,0.12331976,40822.0,40821.0,0.514021]
[1645149506642,0.12331976,40822.0,40821.0,0.664021]
[1645149506842,0.12331976,40822.0,40821.0,0.96819206]
[1645149507045,0.12331976,40822.0,40821.0,0.713021]
[1645149507843,6.858e-05,40824.0,40822.0,0.23802328]
[1645149508046,6.858e-05,40824.0,40823.0,0.430709]
[1645149508443,0.30024871,40830.0,40823.0,0.653193]
[1645149508644,0.00024871,40830.0,40825.0,0.381709]
[1645149508944,0.00024871,40830.0,40827.0,0.331709]
[1645149509144,0.1605825,40831.0,40829.0,0.331709]
[1645149509344,0.00024873,40830.0,40829.0,0.331709]
[1645149510280,0.1605825,40831.0,40829.0,0.331709]
[1645149510686,0.1605825,40831.0,40828.0,0.221489]
[1645149510883,0.1555825,40831.0,40828.0,0.221489]
[1645149511282,0.1555825,40831.0,40829.0,0.061245]
[1645149511482,0.1555825,40831.0,40830.0,0.21729053]
[1645149511884,0.1555825,40831.0,40830.0,0.26729053]
[1645149513531,0.00024872,40833.0,40831.0,0.122493]
[1645149513931,0.20855386,40834.0,40831.0,0.122493]
[1645149514130,0.20880257,40834.0,40831.0,0.122493]
[1645149515132,0.20855386,40834.0,40831.0,0.122493]
[1645149515333,0.20855386,40834.0,40831.0,0.123493]
[1645149515937,0.20855386,40834.0,40831.0,0.122493]
[1645149517184,0.20855386,40835.0,40832.0,0.122498]
[1645149517380,0.001,40834.0,40832.0,0.122498]
[1645149517580,0.001,40834.0,40832.0,0.117498]
[1645149518779,6.676e-05,40833.0,40832.0,0.061249]
[1645149520485,6.676e-05,40833.0,40831.0,0.07104]
[1645149520486,6.676e-05,40833.0,40828.0,0.331709]
[1645149520782,6.676e-05,40833.0,40827.0,0.18445065]
[1645149521431,0.00024887,40832.0,40828.0,0.331709]
[1645149521629,0.00024887,40832.0,40829.0,0.331709]
[1645149521829,0.00024887,40832.0,40830.0,0.122493]
[1645149522029,0.00024887,40832.0,40830.0,0.172493]
[1645149522231,6.676e-05,40833.0,40830.0,0.172493]
[1645149522430,6.676e-05,40833.0,40831.0,0.061247]
[1645149522632,0.00031563,40833.0,40831.0,0.061247]
[1645149523432,0.00106676,40833.0,40831.0,0.061247]
[1645149524684,6.676e-05,40833.0,40831.0,0.061247]
[1645149525279,0.00106676,40833.0,40831.0,0.061247]
[1645149525779,0.00106676,40833.0,40831.0,0.122496]
[1645149526681,6.676e-05,40833.0,40831.0,0.172496]
[1645149527280,0.20862062,40833.0,40831.0,0.172496]
[1645149527480,0.20855386,40832.0,40831.0,0.172496]
[1645149527679,0.20855386,40832.0,40831.0,0.05]
[1645149527880,0.20855386,40832.0,40830.0,0.294986]
[1645149528432,0.20862578,40832.0,40830.0,0.294986]
[1645149530432,7.192e-05,40832.0,40830.0,0.294986]
[1645149531433,7.192e-05,40832.0,40830.0,0.295986]
[1645149532883,0.20862578,40832.0,40830.0,0.295986]
[1645149533481,7.192e-05,40832.0,40830.0,0.295986]
[1645149533982,0.54026286,40831.0,40830.0,0.245986]
[1645149534186,0.13527642,40829.0,40828.0,0.122495]
[1645149534381,0.41918239,40829.0,40827.0,0.183748]
[1645149534783,0.62786194,40829.0,40827.0,0.183748]
[1645149534983,0.62786194,40829.0,40827.0,0.245003]
[1645149535184,0.41918239,40829.0,40827.0,0.245003]
[1645149535383,0.41918239,40829.0,40828.0,0.05]
[1645149536034,0.13527642,40829.0,40828.0,0.059795]
[1645149536637,0.67566497,40829.0,40828.0,0.009795]
[1645149536842,0.331709,40828.0,40827.0,0.183748]
[1645149537035,0.331709,40828.0,40827.0,0.061265]
[1645149537236,0.64486118,40828.0,40827.0,0.061265]
[1645149537434,0.331709,40828.0,40825.0,0.05]
[1645149537634,0.8537924,40826.0,40825.0,0.05]
[1645149538035,0.5928853,40826.0,40825.0,0.05]
[1645149538236,0.8537985,40826.0,40825.0,0.05]
[1645149538638,1.04734629,40826.0,40825.0,0.05]
[1645149539038,1.34734629,40826.0,40825.0,0.05]
[1645149539237,1.08643309,40826.0,40825.0,0.05]
[1645149539443,1.08743309,40826.0,40825.0,0.05]
[1645149539691,1.40058527,40826.0,40825.0,0.05]
[1645149539886,1.08743309,40826.0,40825.0,0.05]
[1645149540285,1.08743309,40826.0,40823.0,0.12253]
[1645149540286,1.19870556,40826.0,40823.0,0.12253]
[1645149540486,0.70608213,40825.0,40823.0,0.12253]
[1645149540687,0.631709,40824.0,40823.0,0.12253]
[1645149541085,0.94480913,40824.0,40823.0,0.12253]
[1645149541486,0.94580913,40824.0,40823.0,0.12253]
[1645149541885,0.632709,40824.0,40823.0,0.12253]
[1645149542090,0.64580845,40824.0,40823.0,0.12253]
[1645149542287,0.31409945,40824.0,40823.0,0.12253]
[1645149542488,0.20970777,40824.0,40823.0,0.12253]
[1645149542687,0.20870777,40826.0,40823.0,0.12253]
[1645149542888,0.26096938,40828.0,40823.0,0.12253]
[1645149542889,0.20870777,40827.0,40823.0,0.172217]
[1645149543088,0.20877691,40828.0,40825.0,0.23756569]
[1645149543459,0.13527642,40829.0,40825.0,0.29881769]
[1645149543460,7.433e-05,40826.0,40825.0,0.29881769]
[1645149543662,7.433e-05,40826.0,40825.0,0.23756569]
[1645149543859,7.433e-05,40826.0,40825.0,0.56927469]
[1645149544160,7.433e-05,40826.0,40825.0,0.23756569]
[1645149544358,7.433e-05,40826.0,40825.0,0.28756569]
[1645149549385,7.433e-05,40826.0,40825.0,0.05]
[1645149549588,7.433e-05,40826.0,40824.0,0.295003]
[1645149549589,0.2087821,40826.0,40824.0,0.295003]
[1645149550384,0.2087821,40826.0,40822.0,0.04418856]
[1645149550585,0.2087821,40826.0,40823.0,0.331709]
[1645149550787,0.2087821,40826.0,40823.0,0.781709]
[1645149550788,7.433e-05,40826.0,40823.0,0.781709]
[1645149551032,7.433e-05,40826.0,40825.0,0.331709]
[1645149551533,7.433e-05,40826.0,40825.0,0.431709]
[1645149551933,0.2087821,40826.0,40825.0,0.1]
[1645149552132,7.433e-05,40826.0,40825.0,0.481709]
[1645149553333,7.433e-05,40826.0,40825.0,0.482709]
[1645149553535,7.368e-05,40828.0,40826.0,0.331709]
[1645149555381,7.368e-05,40828.0,40826.0,0.332709]
[1645149556183,0.20878145,40828.0,40826.0,0.332709]
[1645149556786,0.20878145,40828.0,40826.0,0.331709]
[1645149557493,7.368e-05,40828.0,40826.0,0.332709]
[1645149559331,7.368e-05,40828.0,40826.0,0.331709]
[1645149559529,7.368e-05,40828.0,40826.0,0.332709]
[1645149559729,0.20878145,40828.0,40826.0,0.332709]
[1645149560330,0.20878145,40828.0,40826.0,0.001]
[1645149560531,0.33244401,40827.0,40826.0,0.001]
[1645149560933,0.54115178,40827.0,40826.0,0.001]
[1645149561134,0.27003624,40828.0,40826.0,0.001]
[1645149561332,0.27003624,40828.0,40825.0,0.182297]
[1645149561533,0.27003624,40828.0,40826.0,0.001]
[1645149562586,0.20878145,40828.0,40826.0,0.001]
[1645149563383,0.20878145,40828.0,40825.0,0.182297]
[1645149563584,0.27003544,40828.0,40825.0,0.182297]
[1645149566931,0.26970755,40828.0,40825.0,0.182297]
[1645149567937,0.26970755,40828.0,40827.0,0.331709]
[1645149568133,0.26970755,40828.0,40825.0,0.182297]
[1645149568335,0.20875583,40827.0,40825.0,0.182297]
[1645149568534,0.20875583,40827.0,40826.0,0.331709]
[1645149569533,0.20882951,40828.0,40826.0,0.332709]
[1645149570806,0.20882951,40828.0,40827.0,0.061247]
[1645149571009,0.20882951,40828.0,40827.0,0.392956]
[1645149571409,0.20882951,40828.0,40827.0,0.393956]
[1645149572209,0.20882951,40828.0,40827.0,0.442956]
[1645149573431,0.20982951,40828.0,40827.0,0.441956]
[1645149574432,0.20982951,40828.0,40827.0,0.380709]
[1645149574932,0.20882951,40828.0,40827.0,0.380709]
[1645149575534,0.20882951,40828.0,40827.0,0.381709]
[1645149575935,7.368e-05,40828.0,40827.0,0.381709]
[1645149576938,0.26097392,40828.0,40825.0,0.182297]
[1645149577192,0.26098452,40826.0,40825.0,0.182297]
[1645149577384,0.34258389,40827.0,40825.0,0.059795]
[1645149577385,0.60356841,40827.0,40825.0,0.059795]
[1645149577585,0.26098452,40826.0,40825.0,0.059795]
[1645149577985,0.26098452,40826.0,40825.0,0.009795]
[1645149578585,0.76694434,40827.0,40824.0,0.2891819]
[1645149578785,0.70607117,40826.0,40824.0,0.2891819]
[1645149578989,0.70607117,40826.0,40824.0,0.2391819]
[1645149579186,0.70607117,40826.0,40824.0,0.122499]
[1645149579187,0.64480845,40825.0,40824.0,0.122499]
[1645149579387,0.331709,40824.0,40823.0,0.12253]
[1645149579587,0.64492163,40824.0,40823.0,0.12253]
[1645149579987,0.331709,40824.0,40823.0,0.12253]
[1645149580387,0.95,40823.0,40817.0,0.16196651]
[1645149580586,0.59270638,40822.0,40821.0,0.05]
[1645149580789,0.0612681,40821.0,40815.0,0.295033]
[1645149581035,0.34371895,40818.0,40815.0,0.295033]
[1645149581232,0.34371895,40818.0,40817.0,0.122537]
[1645149582032,0.34371895,40818.0,40817.0,0.172537]
[1645149582434,0.34252095,40818.0,40817.0,0.172537]
[1645149582634,0.34252095,40818.0,40817.0,0.132335]
[1645149582834,0.2087887,40819.0,40817.0,0.122537]
[1645149583033,0.12253644,40820.0,40817.0,0.122537]
[1645149583234,0.12253644,40820.0,40818.0,0.331709]
[1645149583434,0.12253644,40820.0,40817.0,0.184799]
[1645149583637,0.12253644,40820.0,40819.0,0.05]
[1645149583835,0.42045418,40820.0,40819.0,0.05]
[1645149584687,0.12253644,40820.0,40819.0,0.05]
[1645149585481,0.12253644,40820.0,40819.0,0.051]
[1645149585680,0.39089499,40820.0,40819.0,0.051]
[1645149585881,0.12253644,40820.0,40819.0,0.051]
[1645149586683,0.27005616,40821.0,40819.0,0.051]
[1645149586981,0.27005616,40821.0,40819.0,0.233786]
[1645149587581,0.27105616,40821.0,40819.0,0.233786]
[1645149588442,7.671e-05,40820.0,40819.0,0.233786]
[1645149589446,7.671e-05,40820.0,40819.0,0.234786]
[1645149590347,7.671e-05,40820.0,40819.0,0.244583]
[1645149590746,7.671e-05,40820.0,40819.0,0.233786]
[1645149591450,7.671e-05,40820.0,40819.0,0.234786]
[1645149592698,7.671e-05,40820.0,40819.0,0.184786]
[1645149593294,7.671e-05,40820.0,40819.0,0.183786]
[1645149594297,7.671e-05,40820.0,40819.0,0.193583]
[1645149594695,7.671e-05,40820.0,40819.0,0.233786]
[1645149595297,7.671e-05,40820.0,40819.0,0.42337733]
[1645149595497,7.671e-05,40820.0,40819.0,0.75508633]
[1645149595698,7.671e-05,40820.0,40819.0,0.75538705]
[1645149596149,7.671e-05,40820.0,40819.0,1.15538705]
[1645149597547,7.671e-05,40820.0,40819.0,1.15738705]
[1645149598349,0.33137796,40826.0,40821.0,0.061253]
[1645149598548,0.12258926,40826.0,40823.0,0.122512]
[1645149598948,0.06125283,40825.0,40823.0,0.172512]
[1645149599353,0.06125283,40825.0,40823.0,0.111256]
[1645149600488,0.05619979,40825.0,40823.0,0.111256]
[1645149601493,0.33137796,40826.0,40824.0,0.392955]
[1645149601494,7.671e-05,40826.0,40824.0,0.392955]
[1645149601690,7.671e-05,40826.0,40824.0,0.4542]
[1645149601894,7.671e-05,40826.0,40824.0,0.5542]
[1645149602290,7.671e-05,40826.0,40825.0,0.33556961]
[1645149602691,7.671e-05,40826.0,40825.0,0.48556961]
[1645149603538,0.28529211,40829.0,40825.0,0.50807561]
[1645149603539,0.06124965,40828.0,40825.0,0.50807561]
[1645149603738,0.06124965,40828.0,40825.0,0.505215]
[1645149604140,0.06124965,40828.0,40827.0,0.331709]
[1645149604639,7.697e-05,40829.0,40827.0,0.331709]
[1645149604838,7.697e-05,40829.0,40827.0,0.454211]
[1645149605339,7.697e-05,40829.0,40827.0,0.554211]
[1645149605539,7.697e-05,40829.0,40828.0,0.33556961]
[1645149605739,7.697e-05,40829.0,40828.0,0.38556961]
[1645149607588,7.697e-05,40829.0,40828.0,0.38656961]
[1645149608991,7.697e-05,40829.0,40828.0,0.05486061]
[1645149609189,7.697e-05,40829.0,40828.0,0.14971617]
[1645149609389,7.697e-05,40829.0,40828.0,0.14871617]
[1645149609891,7.697e-05,40829.0,40828.0,0.48042517]
[1645149610089,7.697e-05,40829.0,40828.0,0.14871617]
[1645149610290,7.697e-05,40829.0,40828.0,0.48042517]
[1645149610490,7.697e-05,40829.0,40827.0,0.09583873]
[1645149610691,7.697e-05,40829.0,40827.0,0.04583873]
[1645149610692,0.54071567,40829.0,40827.0,0.04583873]
[1645149610938,0.01415513,40826.0,40825.0,0.061253]
[1645149611142,0.55469946,40826.0,40824.0,0.233759]
[1645149611341,0.50870052,40825.0,40824.0,0.233759]
[1645149611941,0.3,40825.0,40824.0,0.233759]
[1645149612344,0.3905406,40826.0,40824.0,0.233759]
[1645149612542,0.63185,40825.0,40824.0,0.233759]
[1645149612741,0.3,40825.0,40824.0,0.233759]
[1645149613142,0.65153798,40826.0,40824.0,0.233759]
[1645149614544,0.3,40825.0,40824.0,0.233759]
[1645149614995,0.3,40825.0,40824.0,0.183759]
[1645149614996,0.63185,40825.0,40824.0,0.183759]
[1645149615588,0.63385,40825.0,40824.0,0.183759]
[1645149616591,0.2608901,40825.0,40824.0,0.183759]
[1645149616791,0.5927401,40825.0,40824.0,0.183759]
[1645149616988,0.33185,40825.0,40824.0,0.183759]
[1645149617388,0.3905406,40826.0,40824.0,0.183759]
[1645149617790,0.20870495,40825.0,40824.0,0.183759]
[1645149618290,7.704e-05,40825.0,40824.0,0.183759]
[1645149619144,0.20878804,40825.0,40824.0,0.183759]
[1645149619745,7.704e-05,40825.0,40824.0,0.183759]
[1645149620745,0.20879396,40825.0,40824.0,0.183759]
[1645149621149,7.704e-05,40825.0,40824.0,0.183759]
[1645149621947,0.20879862,40825.0,40824.0,0.183759]
[1645149622196,7.704e-05,40825.0,40824.0,0.183759]
[1645149622794,0.33192704,40825.0,40824.0,0.183759]
[1645149622989,0.26096714,40825.0,40824.0,0.183759]
[1645149623189,0.56096714,40825.0,40824.0,0.183759]
[1645149623890,0.26096714,40825.0,40824.0,0.183759]
[1645149625792,7.704e-05,40825.0,40824.0,0.183759]
[1645149627046,0.30007704,40825.0,40823.0,0.071063]
[1645149627248,0.26092814,40824.0,40823.0,0.071063]
[1645149629347,0.25592814,40824.0,40823.0,0.071063]
[1645149629990,0.48638313,40824.0,40823.0,0.071063]
[1645149630689,0.25592814,40824.0,40823.0,0.066063]
[1645149633439,0.25600511,40824.0,40823.0,0.066063]
[1645149633737,0.25900511,40824.0,40823.0,0.066063]
[1645149634337,0.25900511,40824.0,40822.0,0.03766034]
[1645149634536,0.37027511,40824.0,40822.0,0.03766034]
[1645149635542,0.37227511,40824.0,40822.0,0.03766034]
[1645149636541,0.29144211,40824.0,40822.0,0.03766034]
[1645149636742,0.20874377,40823.0,40822.0,0.03766034]
[1645149636942,0.24425774,40824.0,40822.0,0.03766034]
[1645149637193,0.24425774,40824.0,40822.0,0.04745734]
[1645149637396,0.03051397,40824.0,40822.0,0.04745734]
[1645149637594,7.697e-05,40824.0,40823.0,0.33185]
[1645149637797,7.697e-05,40824.0,40822.0,0.09845734]
[1645149637993,7.697e-05,40824.0,40822.0,0.08866034]
[1645149638395,0.20882074,40824.0,40822.0,0.08866034]
[1645149638996,7.697e-05,40824.0,40822.0,0.08866034]
[1645149639395,7.697e-05,40824.0,40822.0,0.08766034]
[1645149639598,7.697e-05,40824.0,40822.0,0.08866034]
[1645149639795,7.697e-05,40824.0,40822.0,0.03866034]
[1645149639996,7.697e-05,40824.0,40822.0,0.08866034]
[1645149640597,0.31126453,40823.0,40804.0,0.62012297]
[1645149640802,0.11126453,40823.0,40818.0,0.33185]
[1645149641051,0.29153856,40822.0,40819.0,0.061265]
[1645149641251,0.29153856,40822.0,40821.0,0.341621]
[1645149641454,0.29153856,40822.0,40821.0,0.009796]
[1645149641656,0.29153856,40822.0,40821.0,0.33185]
[1645149642050,0.29153856,40822.0,40821.0,0.275967]
[1645149642250,0.29153856,40822.0,40821.0,0.05]
[1645149643052,0.3200083,40823.0,40821.0,0.05]
[1645149643254,0.3200852,40823.0,40821.0,0.05]
[1645149644257,0.63417946,40823.0,40821.0,0.05]
[1645149644695,0.20874377,40822.0,40820.0,0.12253]
[1645149645090,0.20874377,40822.0,40820.0,0.132328]
[1645149645289,0.24419365,40821.0,40820.0,0.132328]
[1645149645490,0.50286497,40821.0,40820.0,0.061264]
[1645149645692,0.2941212,40821.0,40819.0,0.12253]
[1645149645895,0.20875763,40820.0,40819.0,0.12253]
[1645149646594,0.11126831,40821.0,40819.0,0.17253]
[1645149646793,0.32002594,40821.0,40819.0,0.17253]
[1645149647594,0.32102594,40821.0,40819.0,0.17253]
[1645149647894,0.20875763,40820.0,40819.0,0.17253]
[1645149648742,0.61568147,40821.0,40819.0,0.12253]
[1645149648938,0.61568147,40821.0,40819.0,0.132328]
[1645149649336,0.61568147,40821.0,40819.0,0.12253]
[1645149649537,0.61535285,40821.0,40819.0,0.12253]
[1645149649938,0.20875763,40820.0,40819.0,0.12253]
[1645149650538,0.32077409,40821.0,40819.0,0.12253]
[1645149651139,0.11201646,40821.0,40819.0,0.12253]
[1645149651342,0.32077409,40821.0,40819.0,0.12253]